[Event "Late-Titled-Tuesday-Blitz-February-20-2024"]
[Site "Chess.com"]
[Date "2024.02.20"]
[Round "7"]
[White "dolynachess"]
[Black "chegueps"]
[Result "0-1"]
[WhiteElo "2447"]
[BlackElo "2658"]
[TimeControl "180+1"]
[EndTime "15:15:42 PST"]
[Termination "chegueps won on time"]

1. d4 {[%clk 0:02:51.2]} 1... d6 {[%clk 0:03:00.9]} 2. c4 {[%clk 0:02:51]} 2...
e5 {[%clk 0:03:00.8]} 3. Nf3 {[%clk 0:02:50.2]} 3... e4 {[%clk 0:03:01]} 4. Nfd2
{[%clk 0:02:50.7]} 4... f5 {[%clk 0:03:01.5]} 5. Nc3 {[%clk 0:02:50.5]} 5... Nf6
{[%clk 0:03:02.2]} 6. e3 {[%clk 0:02:51]} 6... Be7 {[%clk 0:03:02.8]} 7. b4
{[%clk 0:02:51.2]} 7... O-O {[%clk 0:03:02.5]} 8. Be2 {[%clk 0:02:51.7]} 8... c6
{[%clk 0:03:02.7]} 9. a4 {[%clk 0:02:45.5]} 9... Be6 {[%clk 0:03:01.1]} 10. g3
{[%clk 0:02:43.8]} 10... Nbd7 {[%clk 0:02:54.4]} 11. Ba3 {[%clk 0:02:35.5]}
11... Kh8 {[%clk 0:02:48.5]} 12. h4 {[%clk 0:02:34.3]} 12... Bf7 {[%clk
0:02:46.6]} 13. c5 {[%clk 0:02:25.3]} 13... a5 {[%clk 0:02:37.1]} 14. cxd6
{[%clk 0:02:10.1]} 14... Bxd6 {[%clk 0:02:36.6]} 15. b5 {[%clk 0:02:08.9]} 15...
Bxa3 {[%clk 0:02:37.5]} 16. Rxa3 {[%clk 0:02:07.2]} 16... Qe7 {[%clk 0:02:36.6]}
17. Ra1 {[%clk 0:02:01.4]} 17... c5 {[%clk 0:02:37]} 18. Nc4 {[%clk 0:01:15.4]}
18... cxd4 {[%clk 0:02:34.5]} 19. Qxd4 {[%clk 0:01:14.8]} 19... Rfd8 {[%clk
0:02:35]} 20. O-O {[%clk 0:00:38.7]} 20... Rac8 {[%clk 0:02:22.6]} 21. Rfd1
{[%clk 0:00:09.6]} 21... Nf8 {[%clk 0:02:11]} 22. Qe5 {[%clk 0:00:05.6]} 22...
Qb4 {[%clk 0:02:11]} 23. Nd6 {[%clk 0:00:03.5]} 23... Rxd6 {[%clk 0:02:07]} 24.
Rxd6 {[%clk 0:00:02.7]} 24... Qxc3 {[%clk 0:01:56.8]} 25. Qxc3 {[%clk
0:00:01.8]} 25... Rxc3 {[%clk 0:01:57.7]} 26. Rad1 {[%clk 0:00:01.8]} 26... Ne6
{[%clk 0:01:54.5]} 27. Rd8+ {[%clk 0:00:01.1]} 27... Nxd8 {[%clk 0:01:54.6]} 28.
Rxd8+ {[%clk 0:00:01.2]} 28... Bg8 {[%clk 0:01:42.1]} 29. Ra8 {[%clk 0:00:02.1]}
29... b6 {[%clk 0:01:41.1]} 30. Rb8 {[%clk 0:00:02.3]} 30... Nd7 {[%clk
0:01:34.3]} 31. Rb7 {[%clk 0:00:02.5]} 31... Rc2 {[%clk 0:01:34.9]} 32. Rxd7
{[%clk 0:00:01.9]} 32... Rxe2 {[%clk 0:01:35]} 33. Rd6 {[%clk 0:00:02.7]} 33...
h6 {[%clk 0:01:31.7]} 34. Rxb6 {[%clk 0:00:03.6]} 34... Re1+ {[%clk 0:01:31.8]}
35. Kh2 {[%clk 0:00:01.9]} 35... Bc4 {[%clk 0:01:32.7]} 0-1

[Event "Late-Titled-Tuesday-Blitz-February-20-2024"]
[Site "Chess.com"]
[Date "2024.02.20"]
[Round "7"]
[White "toninhojit"]
[Black "Sicupira"]
[Result "1-0"]
[WhiteElo "2465"]
[BlackElo "2287"]
[TimeControl "180+1"]
[EndTime "15:15:43 PST"]
[Termination "toninhojit won by resignation"]

1. d4 {[%clk 0:03:00]} 1... d5 {[%clk 0:02:56.5]} 2. c4 {[%clk 0:02:59.9]} 2...
e6 {[%clk 0:02:54.9]} 3. Nc3 {[%clk 0:02:59.6]} 3... Bb4 {[%clk 0:02:55.1]} 4.
Nf3 {[%clk 0:02:57.8]} 4... Nf6 {[%clk 0:02:54.7]} 5. Qa4+ {[%clk 0:02:57.5]}
5... Nc6 {[%clk 0:02:54.2]} 6. e3 {[%clk 0:02:57.8]} 6... O-O {[%clk 0:02:54.1]}
7. Bd3 {[%clk 0:02:58.1]} 7... dxc4 {[%clk 0:02:51.1]} 8. Bxc4 {[%clk 0:02:59]}
8... a6 {[%clk 0:02:48.3]} 9. Qc2 {[%clk 0:02:57]} 9... Bd6 {[%clk 0:02:48.9]}
10. O-O {[%clk 0:02:53.9]} 10... e5 {[%clk 0:02:46.1]} 11. b3 {[%clk 0:02:46.5]}
11... b5 {[%clk 0:02:40]} 12. Be2 {[%clk 0:02:43.3]} 12... Bg4 {[%clk
0:02:23.9]} 13. dxe5 {[%clk 0:02:32.7]} 13... Nxe5 {[%clk 0:02:21.6]} 14. Nxe5
{[%clk 0:02:25.7]} 14... Bxe5 {[%clk 0:02:22.5]} 15. Bb2 {[%clk 0:02:26.2]}
15... Bxe2 {[%clk 0:02:02.5]} 16. Qxe2 {[%clk 0:02:27.1]} 16... Re8 {[%clk
0:01:44.8]} 17. Rad1 {[%clk 0:02:23.9]} 17... Qe7 {[%clk 0:01:44.4]} 18. Nd5
{[%clk 0:02:17]} 18... Nxd5 {[%clk 0:01:40.6]} 19. Rxd5 {[%clk 0:02:17.9]} 19...
Bxb2 {[%clk 0:01:40]} 20. Qxb2 {[%clk 0:02:18.8]} 20... Red8 {[%clk 0:01:32.7]}
21. Rfd1 {[%clk 0:02:18.8]} 21... Rxd5 {[%clk 0:01:31.8]} 22. Rxd5 {[%clk
0:02:19.7]} 22... Rd8 {[%clk 0:01:24.2]} 23. Qd4 {[%clk 0:02:19.1]} 23... Rd6
{[%clk 0:00:51.8]} 24. Rxd6 {[%clk 0:02:09.8]} 24... Qxd6 {[%clk 0:00:46.5]} 25.
Qxd6 {[%clk 0:02:06.9]} 25... cxd6 {[%clk 0:00:47.4]} 26. Kf1 {[%clk 0:02:07.8]}
26... f5 {[%clk 0:00:46.9]} 27. Ke2 {[%clk 0:02:08.2]} 27... Kf7 {[%clk
0:00:47.4]} 28. Kd3 {[%clk 0:02:08.9]} 28... Ke6 {[%clk 0:00:39.8]} 29. Kd4
{[%clk 0:02:09.2]} 29... a5 {[%clk 0:00:38.3]} 30. f4 {[%clk 0:02:06]} 30... Ke7
{[%clk 0:00:26.6]} 31. Kd5 {[%clk 0:02:03.3]} 31... Kd7 {[%clk 0:00:26.6]} 32.
a3 {[%clk 0:02:03.1]} 32... g6 {[%clk 0:00:21.6]} 33. g3 {[%clk 0:02:03.2]}
33... h6 {[%clk 0:00:20.4]} 34. h3 {[%clk 0:02:01.2]} 34... h5 {[%clk
0:00:13.9]} 35. h4 {[%clk 0:01:54.8]} 35... Kc7 {[%clk 0:00:13.9]} 36. Ke6
{[%clk 0:01:43.4]} 36... Kc6 {[%clk 0:00:13.9]} 37. b4 {[%clk 0:01:44]} 37...
axb4 {[%clk 0:00:11.9]} 38. axb4 {[%clk 0:01:44.9]} 38... d5 {[%clk 0:00:11.9]}
39. Ke5 {[%clk 0:01:44.7]} 39... d4 {[%clk 0:00:11.5]} 40. exd4 {[%clk
0:01:44.6]} 40... Kd7 {[%clk 0:00:11.2]} 41. d5 {[%clk 0:01:44.9]} 1-0

[Event "Late-Titled-Tuesday-Blitz-February-20-2024"]
[Site "Chess.com"]
[Date "2024.02.20"]
[Round "7"]
[White "Bkmzzzzz"]
[Black "chessydotcom"]
[Result "0-1"]
[WhiteElo "2370"]
[BlackElo "2178"]
[TimeControl "180+1"]
[EndTime "15:15:52 PST"]
[Termination "chessydotcom won by resignation"]

1. e4 {[%clk 0:03:00.9]} 1... c5 {[%clk 0:02:58.8]} 2. Nf3 {[%clk 0:03:00.8]}
2... e6 {[%clk 0:02:58.8]} 3. d3 {[%clk 0:03:00.9]} 3... Nc6 {[%clk 0:02:58.6]}
4. g3 {[%clk 0:03:01.1]} 4... Nge7 {[%clk 0:02:56.9]} 5. Bg2 {[%clk 0:03:01.5]}
5... g6 {[%clk 0:02:57.5]} 6. O-O {[%clk 0:03:01.9]} 6... Bg7 {[%clk 0:02:58.2]}
7. Re1 {[%clk 0:03:01.7]} 7... d5 {[%clk 0:02:58]} 8. e5 {[%clk 0:03:00.6]} 8...
Qc7 {[%clk 0:02:55.3]} 9. Bf4 {[%clk 0:02:59.5]} 9... h6 {[%clk 0:02:55.6]} 10.
h4 {[%clk 0:02:58.8]} 10... Bd7 {[%clk 0:02:53.1]} 11. c3 {[%clk 0:02:43.6]}
11... g5 {[%clk 0:02:46.1]} 12. hxg5 {[%clk 0:02:42.9]} 12... hxg5 {[%clk
0:02:46.2]} 13. Bxg5 {[%clk 0:02:25.9]} 13... Nxe5 {[%clk 0:02:34.6]} 14. Bf4
{[%clk 0:01:46.6]} 14... Nxf3+ {[%clk 0:02:32.5]} 15. Qxf3 {[%clk 0:01:41.1]}
15... Qb6 {[%clk 0:02:26.8]} 16. Qe2 {[%clk 0:01:25.3]} 16... O-O-O {[%clk
0:02:24.7]} 17. Na3 {[%clk 0:01:17]} 17... Ng6 {[%clk 0:02:17.9]} 18. Be3 {[%clk
0:01:11.6]} 18... Qa5 {[%clk 0:02:09]} 19. Nc2 {[%clk 0:01:04.8]} 19... Bb5
{[%clk 0:01:57.5]} 20. a4 {[%clk 0:01:02.9]} 20... Bc6 {[%clk 0:01:53.9]} 21. b4
{[%clk 0:00:59.2]} 21... Qc7 {[%clk 0:01:52.7]} 22. Ra3 {[%clk 0:00:29.3]} 22...
d4 {[%clk 0:01:51.9]} 23. cxd4 {[%clk 0:00:22.8]} 23... Bxg2 {[%clk 0:01:45.4]}
24. Kxg2 {[%clk 0:00:20.8]} 24... cxd4 {[%clk 0:01:44.5]} 25. Bg5 {[%clk
0:00:20.2]} 25... Rd5 {[%clk 0:01:40.6]} 26. f4 {[%clk 0:00:18.5]} 26... Qc6
{[%clk 0:01:38.7]} 27. Kg1 {[%clk 0:00:17.6]} 27... Kb8 {[%clk 0:01:37]} 28. Rc1
{[%clk 0:00:15.4]} 28... Rxg5 {[%clk 0:01:31.9]} 29. Qg2 {[%clk 0:00:13.7]}
29... Qxg2+ {[%clk 0:01:21.2]} 30. Kxg2 {[%clk 0:00:14.6]} 30... Nxf4+ {[%clk
0:01:21.5]} 31. Kf3 {[%clk 0:00:14.5]} 31... Nd5 {[%clk 0:01:20.5]} 32. b5
{[%clk 0:00:14.1]} 32... Rf5+ {[%clk 0:01:18.9]} 33. Ke4 {[%clk 0:00:14]} 33...
Nc3+ {[%clk 0:01:16.8]} 0-1

[Event "Late-Titled-Tuesday-Blitz-February-20-2024"]
[Site "Chess.com"]
[Date "2024.02.20"]
[Round "7"]
[White "pfalcon1949"]
[Black "esteban062000"]
[Result "1-0"]
[WhiteElo "2005"]
[BlackElo "2129"]
[TimeControl "180+1"]
[EndTime "15:15:52 PST"]
[Termination "pfalcon1949 won by resignation"]

1. e4 {[%clk 0:03:00.9]} 1... c5 {[%clk 0:02:59.5]} 2. Nf3 {[%clk 0:03:00.6]}
2... Nc6 {[%clk 0:02:59.6]} 3. d4 {[%clk 0:03:01.2]} 3... cxd4 {[%clk
0:03:00.5]} 4. Nxd4 {[%clk 0:03:01.2]} 4... Nf6 {[%clk 0:03:00.8]} 5. Nc3 {[%clk
0:03:01.5]} 5... e5 {[%clk 0:03:00.9]} 6. Ndb5 {[%clk 0:03:00.6]} 6... d6 {[%clk
0:03:01.3]} 7. Nd5 {[%clk 0:03:00.4]} 7... Nxd5 {[%clk 0:02:56.9]} 8. exd5
{[%clk 0:03:00.2]} 8... Nb8 {[%clk 0:02:57]} 9. a4 {[%clk 0:02:59]} 9... Be7
{[%clk 0:02:54.7]} 10. Be2 {[%clk 0:02:58.4]} 10... O-O {[%clk 0:02:54.7]} 11.
Bd2 {[%clk 0:02:58]} 11... a6 {[%clk 0:02:54.8]} 12. Na3 {[%clk 0:02:55]} 12...
Nd7 {[%clk 0:02:54.2]} 13. Nc4 {[%clk 0:02:52.7]} 13... Nb6 {[%clk 0:02:51.1]}
14. O-O {[%clk 0:02:50.4]} 14... Nxc4 {[%clk 0:02:46.4]} 15. Bxc4 {[%clk
0:02:49.7]} 15... Bf5 {[%clk 0:02:43.4]} 16. a5 {[%clk 0:02:49.2]} 16... Qc7
{[%clk 0:02:41.2]} 17. b3 {[%clk 0:02:48.6]} 17... Rac8 {[%clk 0:02:28.5]} 18.
f4 {[%clk 0:02:42]} 18... exf4 {[%clk 0:02:06]} 19. Bxf4 {[%clk 0:02:39.6]}
19... Bg6 {[%clk 0:02:01]} 20. Qd2 {[%clk 0:02:18.7]} 20... Bf6 {[%clk
0:01:56.4]} 21. Rae1 {[%clk 0:02:13.5]} 21... Rfe8 {[%clk 0:01:51.8]} 22. Rxe8+
{[%clk 0:02:10.5]} 22... Rxe8 {[%clk 0:01:52.7]} 23. Re1 {[%clk 0:02:08.8]}
23... Be5 {[%clk 0:01:19.5]} 24. Bxe5 {[%clk 0:02:01.2]} 24... dxe5 {[%clk
0:01:18.6]} 25. d6 {[%clk 0:01:59.3]} 25... Qc5+ {[%clk 0:01:10.3]} 26. Kh1
{[%clk 0:01:55.5]} 26... Rd8 {[%clk 0:01:09.3]} 27. Rd1 {[%clk 0:01:55]} 27...
e4 {[%clk 0:01:04]} 28. d7 {[%clk 0:01:45]} 28... e3 {[%clk 0:01:01.8]} 29. Qe1
{[%clk 0:01:30.9]} 29... Qe7 {[%clk 0:00:26]} 30. h3 {[%clk 0:01:20.8]} 30...
Rxd7 {[%clk 0:00:23.5]} 31. Rxd7 {[%clk 0:01:17.9]} 31... Qxd7 {[%clk
0:00:23.3]} 32. Qxe3 {[%clk 0:01:15.9]} 32... Qd1+ {[%clk 0:00:23]} 33. Kh2
{[%clk 0:01:15.5]} 33... Qd6+ {[%clk 0:00:23.6]} 34. g3 {[%clk 0:01:12.9]} 34...
Bxc2 {[%clk 0:00:21.2]} 35. Qe8+ {[%clk 0:01:10.7]} 35... Qf8 {[%clk 0:00:20.9]}
36. Bxf7+ {[%clk 0:01:10.3]} 1-0

[Event "Late-Titled-Tuesday-Blitz-February-20-2024"]
[Site "Chess.com"]
[Date "2024.02.20"]
[Round "7"]
[White "jcmesafischer"]
[Black "ritanovikova"]
[Result "0-1"]
[WhiteElo "2356"]
[BlackElo "2229"]
[TimeControl "180+1"]
[EndTime "15:15:54 PST"]
[Termination "ritanovikova won on time"]

1. e4 {[%clk 0:03:00.9]} 1... d5 {[%clk 0:02:55.5]} 2. exd5 {[%clk 0:02:43.3]}
2... Qxd5 {[%clk 0:02:51]} 3. Nc3 {[%clk 0:02:42.8]} 3... Qd6 {[%clk 0:02:51.4]}
4. d4 {[%clk 0:01:45.8]} 4... Nf6 {[%clk 0:02:50.4]} 5. Nb5 {[%clk 0:01:42.1]}
5... Qd8 {[%clk 0:02:49.5]} 6. c4 {[%clk 0:01:42.2]} 6... a6 {[%clk 0:02:48.8]}
7. Nc3 {[%clk 0:01:42.4]} 7... Bg4 {[%clk 0:02:40.1]} 8. Qb3 {[%clk 0:01:37.1]}
8... b6 {[%clk 0:02:31.3]} 9. Be3 {[%clk 0:01:22.2]} 9... e6 {[%clk 0:02:23.7]}
10. h3 {[%clk 0:01:02.4]} 10... Bf5 {[%clk 0:02:21]} 11. g4 {[%clk 0:01:01.4]}
11... Bg6 {[%clk 0:02:12.7]} 12. Bg2 {[%clk 0:01:01]} 12... Ra7 {[%clk
0:02:03.7]} 13. O-O-O {[%clk 0:00:54]} 13... Qd7 {[%clk 0:01:54.3]} 14. Nf3
{[%clk 0:00:16.6]} 14... Nc6 {[%clk 0:01:35.1]} 15. Ne5 {[%clk 0:00:16.7]} 15...
Na5 {[%clk 0:01:34.3]} 16. Nxd7 {[%clk 0:00:04.5]} 16... Nxb3+ {[%clk
0:01:33.4]} 17. axb3 {[%clk 0:00:05.4]} 17... Kxd7 {[%clk 0:01:26.9]} 18. d5
{[%clk 0:00:04.5]} 18... e5 {[%clk 0:01:24.4]} 19. f4 {[%clk 0:00:03.5]} 19...
exf4 {[%clk 0:01:20.4]} 20. Bxf4 {[%clk 0:00:04.4]} 20... Bd6 {[%clk 0:01:20.2]}
21. Bxd6 {[%clk 0:00:04.7]} 21... Kxd6 {[%clk 0:01:17.8]} 22. Ne2 {[%clk
0:00:04.7]} 22... a5 {[%clk 0:01:12.1]} 23. Nd4 {[%clk 0:00:05]} 23... Kd7
{[%clk 0:00:59.4]} 0-1

[Event "Late-Titled-Tuesday-Blitz-February-20-2024"]
[Site "Chess.com"]
[Date "2024.02.20"]
[Round "7"]
[White "Mikhail_Golubev"]
[Black "Alex_Sahakyan2006"]
[Result "0-1"]
[WhiteElo "2612"]
[BlackElo "2829"]
[TimeControl "180+1"]
[EndTime "15:16:18 PST"]
[Termination "Alex_Sahakyan2006 won by resignation"]

1. e4 {[%clk 0:03:00.9]} 1... Nc6 {[%clk 0:02:57.5]} 2. Nf3 {[%clk 0:03:00.5]}
2... e5 {[%clk 0:02:57.4]} 3. Bc4 {[%clk 0:02:58.5]} 3... Nf6 {[%clk 0:02:55]}
4. Ng5 {[%clk 0:02:57.6]} 4... d5 {[%clk 0:02:54.5]} 5. exd5 {[%clk 0:02:58.2]}
5... b5 {[%clk 0:02:54.8]} 6. Bf1 {[%clk 0:02:56.7]} 6... Qxd5 {[%clk
0:02:48.4]} 7. Nc3 {[%clk 0:02:53.2]} 7... Qd7 {[%clk 0:02:49]} 8. Bxb5 {[%clk
0:02:49.3]} 8... Bb7 {[%clk 0:02:49.7]} 9. Nf3 {[%clk 0:02:36.4]} 9... O-O-O
{[%clk 0:02:36.8]} 10. O-O {[%clk 0:02:30.7]} 10... Bd6 {[%clk 0:02:33.3]} 11.
d3 {[%clk 0:02:15.2]} 11... Qf5 {[%clk 0:02:08.3]} 12. Bg5 {[%clk 0:01:58.2]}
12... Nd4 {[%clk 0:02:03.2]} 13. Nxd4 {[%clk 0:01:07.1]} 13... exd4 {[%clk
0:02:01.4]} 14. Ne4 {[%clk 0:00:53]} 14... Nxe4 {[%clk 0:01:57.7]} 15. Bxd8
{[%clk 0:00:52.4]} 15... Rxd8 {[%clk 0:01:25.4]} 16. dxe4 {[%clk 0:00:50.2]}
16... Qxb5 {[%clk 0:01:25.5]} 17. Qg4+ {[%clk 0:00:49.9]} 17... Kb8 {[%clk
0:01:23.8]} 18. Qxg7 {[%clk 0:00:48.5]} 18... Bxe4 {[%clk 0:01:21.6]} 19. Rad1
{[%clk 0:00:39.7]} 19... Be5 {[%clk 0:01:14.5]} 20. Qxf7 {[%clk 0:00:34.1]}
20... Bd5 {[%clk 0:01:06.1]} 21. Qxh7 {[%clk 0:00:24.3]} 21... Rh8 {[%clk
0:01:01.9]} 22. Qd3 {[%clk 0:00:08.2]} 22... Bxh2+ {[%clk 0:01:01.3]} 23. Kh1
{[%clk 0:00:08.6]} 23... Bd6+ {[%clk 0:01:01.7]} 24. Kg1 {[%clk 0:00:08.5]}
24... Bc4 {[%clk 0:00:41.7]} 25. Qf3 {[%clk 0:00:05.9]} 25... Qe5 {[%clk
0:00:37.6]} 26. g3 {[%clk 0:00:04.7]} 26... Bd5 {[%clk 0:00:37.5]} 0-1

[Event "Late-Titled-Tuesday-Blitz-February-20-2024"]
[Site "Chess.com"]
[Date "2024.02.20"]
[Round "7"]
[White "Practical-Play"]
[Black "jsdbv18"]
[Result "1-0"]
[WhiteElo "2556"]
[BlackElo "2612"]
[TimeControl "180+1"]
[EndTime "15:16:18 PST"]
[Termination "Practical-Play won by resignation"]

1. e4 {[%clk 0:02:36.3]} 1... c5 {[%clk 0:02:57.9]} 2. Nf3 {[%clk 0:02:35.6]}
2... d6 {[%clk 0:02:58.6]} 3. c3 {[%clk 0:02:35]} 3... Nf6 {[%clk 0:02:58.8]} 4.
Bd3 {[%clk 0:02:34.5]} 4... g6 {[%clk 0:02:58.9]} 5. Bc2 {[%clk 0:02:34.8]} 5...
Bg7 {[%clk 0:02:59.2]} 6. d4 {[%clk 0:02:35.4]} 6... O-O {[%clk 0:02:59.6]} 7.
Qe2 {[%clk 0:02:29.8]} 7... cxd4 {[%clk 0:02:58.2]} 8. cxd4 {[%clk 0:02:29.8]}
8... Bg4 {[%clk 0:02:58.9]} 9. h3 {[%clk 0:02:22.4]} 9... Bxf3 {[%clk
0:02:58.4]} 10. Qxf3 {[%clk 0:02:22.2]} 10... Nc6 {[%clk 0:02:59.2]} 11. Be3
{[%clk 0:02:22.2]} 11... Nb4 {[%clk 0:02:55.6]} 12. Bb3 {[%clk 0:02:17.6]} 12...
Nd3+ {[%clk 0:02:52.2]} 13. Ke2 {[%clk 0:02:12]} 13... Nb4 {[%clk 0:02:52.1]}
14. Nc3 {[%clk 0:01:58.3]} 14... Rc8 {[%clk 0:02:51.2]} 15. g4 {[%clk
0:01:49.2]} 15... Qa5 {[%clk 0:02:43.2]} 16. Kf1 {[%clk 0:01:43.5]} 16... e5
{[%clk 0:02:34.8]} 17. d5 {[%clk 0:01:36.4]} 17... Nd7 {[%clk 0:02:25.2]} 18. h4
{[%clk 0:01:33.2]} 18... Nd3 {[%clk 0:02:18.9]} 19. h5 {[%clk 0:01:24]} 19...
Nxb2 {[%clk 0:02:17.1]} 20. Ne2 {[%clk 0:01:18]} 20... Nc4 {[%clk 0:01:47.4]}
21. Bxc4 {[%clk 0:01:09.8]} 21... Rxc4 {[%clk 0:01:47.4]} 22. Qh3 {[%clk
0:00:44.9]} 22... Nf6 {[%clk 0:01:37.3]} 23. hxg6 {[%clk 0:00:39.3]} 23... fxg6
{[%clk 0:01:37.4]} 24. Ng3 {[%clk 0:00:31.4]} 24... Qc7 {[%clk 0:01:32.6]} 25.
g5 {[%clk 0:00:29.2]} 25... Nh5 {[%clk 0:00:43.7]} 26. Nxh5 {[%clk 0:00:28.7]}
26... gxh5 {[%clk 0:00:44.3]} 27. Qxh5 {[%clk 0:00:28.6]} 27... Bh8 {[%clk
0:00:40.3]} 28. g6 {[%clk 0:00:27.4]} 28... Rf6 {[%clk 0:00:28.3]} 29. gxh7+
{[%clk 0:00:24.7]} 29... Kf8 {[%clk 0:00:27]} 30. Bh6+ {[%clk 0:00:21.4]} 1-0

[Event "Late-Titled-Tuesday-Blitz-February-20-2024"]
[Site "Chess.com"]
[Date "2024.02.20"]
[Round "7"]
[White "egnfanclub"]
[Black "Bryanl106"]
[Result "0-1"]
[WhiteElo "2384"]
[BlackElo "2526"]
[TimeControl "180+1"]
[EndTime "15:16:19 PST"]
[Termination "Bryanl106 won by resignation"]

1. e4 {[%clk 0:03:00.9]} 1... e5 {[%clk 0:02:59.7]} 2. Nf3 {[%clk 0:02:58.5]}
2... Nc6 {[%clk 0:03:00]} 3. d4 {[%clk 0:02:58.6]} 3... exd4 {[%clk 0:03:00.2]}
4. Bc4 {[%clk 0:02:53.9]} 4... Nf6 {[%clk 0:02:59.9]} 5. Ng5 {[%clk 0:02:50.7]}
5... d5 {[%clk 0:02:53.5]} 6. exd5 {[%clk 0:02:47.5]} 6... Na5 {[%clk
0:02:33.8]} 7. Qxd4 {[%clk 0:02:36]} 7... Nxc4 {[%clk 0:02:32.3]} 8. Qxc4 {[%clk
0:02:36.9]} 8... Qxd5 {[%clk 0:02:32.4]} 9. Qe2+ {[%clk 0:02:30.2]} 9... Be7
{[%clk 0:02:31.5]} 10. Nc3 {[%clk 0:02:26.5]} 10... Qc6 {[%clk 0:02:27.4]} 11.
O-O {[%clk 0:02:23.4]} 11... h6 {[%clk 0:02:22.2]} 12. Re1 {[%clk 0:02:22.1]}
12... Qd7 {[%clk 0:02:19.2]} 13. Nf3 {[%clk 0:02:07.3]} 13... Qd8 {[%clk
0:02:18.9]} 14. Bf4 {[%clk 0:01:59.3]} 14... Be6 {[%clk 0:02:15.8]} 15. Qb5+
{[%clk 0:01:52.3]} 15... Nd7 {[%clk 0:02:03.6]} 16. Nd4 {[%clk 0:01:31.8]} 16...
O-O {[%clk 0:01:55.9]} 17. Nxe6 {[%clk 0:01:29.1]} 17... fxe6 {[%clk 0:01:56.8]}
18. Bg3 {[%clk 0:01:23.3]} 18... b6 {[%clk 0:01:34.7]} 19. Rad1 {[%clk
0:01:23.1]} 19... Bd6 {[%clk 0:01:27.2]} 20. Bxd6 {[%clk 0:01:05.7]} 20... cxd6
{[%clk 0:01:28.1]} 21. Rxd6 {[%clk 0:01:03.5]} 21... Rf7 {[%clk 0:01:16.2]} 22.
Red1 {[%clk 0:00:55.1]} 22... Qf6 {[%clk 0:01:12.4]} 23. Ne4 {[%clk 0:00:55.3]}
23... Qf4 {[%clk 0:01:12.4]} 24. f3 {[%clk 0:00:29.9]} 24... Ne5 {[%clk
0:01:09.3]} 25. Rxe6 {[%clk 0:00:25.2]} 25... Nxf3+ {[%clk 0:00:57.4]} 26. gxf3
{[%clk 0:00:26.1]} 26... Qe3+ {[%clk 0:00:57.7]} 27. Kg2 {[%clk 0:00:22.4]}
27... Qxf3+ {[%clk 0:00:58]} 28. Kg1 {[%clk 0:00:19.3]} 28... Qxd1+ {[%clk
0:00:58.2]} 29. Kg2 {[%clk 0:00:19.9]} 29... Qf3+ {[%clk 0:00:59.1]} 30. Kg1
{[%clk 0:00:20]} 30... Raf8 {[%clk 0:00:59.5]} 31. Re8 {[%clk 0:00:17.2]} 31...
Qd1+ {[%clk 0:00:54.8]} 32. Kg2 {[%clk 0:00:17]} 32... Qxc2+ {[%clk 0:00:54.6]}
33. Kh3 {[%clk 0:00:13.4]} 33... Rf3+ {[%clk 0:00:53.8]} 34. Ng3 {[%clk
0:00:13.1]} 34... Qg6 {[%clk 0:00:50]} 35. Rxf8+ {[%clk 0:00:12.5]} 35... Rxf8
{[%clk 0:00:50.9]} 36. Qd5+ {[%clk 0:00:12.4]} 36... Kh7 {[%clk 0:00:51.2]} 0-1

[Event "Late-Titled-Tuesday-Blitz-February-20-2024"]
[Site "Chess.com"]
[Date "2024.02.20"]
[Round "7"]
[White "Statham_01"]
[Black "Korchmar_Vasiliy"]
[Result "1-0"]
[WhiteElo "2589"]
[BlackElo "2747"]
[TimeControl "180+1"]
[EndTime "15:16:22 PST"]
[Termination "Statham_01 won by resignation"]

1. Nc3 {[%clk 0:03:00.2]} 1... g5 {[%clk 0:02:51.9]} 2. d4 {[%clk 0:02:58.5]}
2... g4 {[%clk 0:02:50.8]} 3. e4 {[%clk 0:02:58.4]} 3... Bg7 {[%clk 0:02:47.7]}
4. Be3 {[%clk 0:02:52.5]} 4... d6 {[%clk 0:02:45.1]} 5. h3 {[%clk 0:02:49.5]}
5... h5 {[%clk 0:02:34.2]} 6. hxg4 {[%clk 0:02:43.1]} 6... hxg4 {[%clk
0:02:34.4]} 7. Rxh8 {[%clk 0:02:42.6]} 7... Bxh8 {[%clk 0:02:35.3]} 8. Be2
{[%clk 0:02:41.4]} 8... Nc6 {[%clk 0:02:29.2]} 9. Bxg4 {[%clk 0:02:36.1]} 9...
Nf6 {[%clk 0:02:06.6]} 10. Bf3 {[%clk 0:02:28.7]} 10... e6 {[%clk 0:01:52]} 11.
Qd2 {[%clk 0:02:22.4]} 11... Qe7 {[%clk 0:01:51.8]} 12. O-O-O {[%clk 0:02:19.6]}
12... Bd7 {[%clk 0:01:52.4]} 13. Nge2 {[%clk 0:02:14.9]} 13... O-O-O {[%clk
0:01:52.7]} 14. Kb1 {[%clk 0:01:55.8]} 14... Kb8 {[%clk 0:01:52.9]} 15. a3
{[%clk 0:01:51]} 15... Rg8 {[%clk 0:01:50.4]} 16. g3 {[%clk 0:01:50.1]} 16...
Ng4 {[%clk 0:01:50]} 17. Bxg4 {[%clk 0:01:46.3]} 17... Rxg4 {[%clk 0:01:50.9]}
18. Rh1 {[%clk 0:01:45.3]} 18... Rg8 {[%clk 0:01:50.2]} 19. f4 {[%clk
0:01:24.7]} 19... a6 {[%clk 0:01:48.6]} 20. d5 {[%clk 0:01:23.8]} 20... Na7
{[%clk 0:01:38.9]} 21. Bxa7+ {[%clk 0:01:15.6]} 21... Kxa7 {[%clk 0:01:36.8]}
22. Rxh8 {[%clk 0:01:15.7]} 22... Rxh8 {[%clk 0:01:36.7]} 23. Qd4+ {[%clk
0:01:15.7]} 23... b6 {[%clk 0:01:32.6]} 24. Qxh8 {[%clk 0:01:15.7]} 24... f5
{[%clk 0:01:33.2]} 25. Qd4 {[%clk 0:01:10.3]} 25... e5 {[%clk 0:01:32.3]} 26.
fxe5 {[%clk 0:01:09.4]} 26... dxe5 {[%clk 0:01:33.2]} 27. Qc4 {[%clk 0:01:09.2]}
27... Bc8 {[%clk 0:01:31.9]} 28. Ka2 {[%clk 0:01:01.5]} 28... Kb8 {[%clk
0:01:31.6]} 29. b3 {[%clk 0:01:00.4]} 29... Qg5 {[%clk 0:01:31]} 30. d6 {[%clk
0:00:57.1]} 30... cxd6 {[%clk 0:01:30.8]} 31. Qc6 {[%clk 0:00:56.4]} 31... Qd2
{[%clk 0:01:23.9]} 32. Qxb6+ {[%clk 0:00:56.4]} 32... Ka8 {[%clk 0:01:24.4]} 33.
Kb2 {[%clk 0:00:56.4]} 33... fxe4 {[%clk 0:01:19.7]} 34. Qd8 {[%clk 0:00:49.8]}
34... Kb8 {[%clk 0:01:10.9]} 35. g4 {[%clk 0:00:48.3]} 35... Kb7 {[%clk
0:00:58.9]} 36. g5 {[%clk 0:00:46.7]} 36... e3 {[%clk 0:00:55]} 37. Qe7+ {[%clk
0:00:37.1]} 37... Kc6 {[%clk 0:00:48.4]} 38. Qe8+ {[%clk 0:00:33.7]} 38... Bd7
{[%clk 0:00:45.5]} 39. Qa8+ {[%clk 0:00:32.8]} 39... Kc7 {[%clk 0:00:46]} 40.
Nd5+ {[%clk 0:00:31.6]} 1-0